bitfinex/quotes_ETHUSD_20251215
["timestamp","ask_amount","ask_price","bid_price","bid_amount"]
[1765826847194,0.58047529,2951.6,2950.7,6.78000504]
[1765826847810,0.001,2951.5,2950.7,6.78000504]
[1765826848208,0.001,2951.5,2950.8,0.4956]
[1765826848612,0.001,2951.5,2951.4,0.6756]
[1765826848780,0.001,2951.5,2950.7,3.39097871]
[1765826848979,0.33890227,2951.4,2950.7,0.547]
[1765826850113,0.33890227,2951.4,2950.8,6.77782296]
[1765826850287,0.58147529,2951.5,2950.8,6.77782296]
[1765826850698,0.001,2951.5,2950.9,0.49828796]
[1765826850993,0.001,2951.5,2950.9,0.4644]
[1765826851191,0.001,2951.5,2951.4,0.6588]
[1765826851720,0.001,2951.5,2951.4,1.1232]
[1765826852096,0.001,2952.7,2951.4,11.83286759]
[1765826852295,0.001,2952.7,2951.5,1.97602041]
[1765826852496,0.001,2952.7,2951.6,0.03387992]
[1765826852714,0.001,2952.7,2951.6,0.4539]
[1765826852914,0.001,2952.7,2951.7,0.58047529]
[1765826853101,0.001,2952.7,2951.8,0.545]
[1765826853308,0.001,2952.7,2951.8,0.9989]
[1765826853594,0.001,2952.7,2951.9,0.4539]
[1765826854126,0.001,2952.7,2952.0,10.16260161]
[1765826854330,0.001,2952.7,2952.1,1.06165016]
[1765826854497,0.001,2952.7,2952.2,0.545]
[1765826854823,0.001,2952.7,2952.1,1.70945016]
[1765826855032,0.001,2952.7,2952.1,1.06165016]
[1765826855238,0.001,2952.2,2952.0,3.93253387]
[1765826855411,0.002,2952.7,2952.0,3.93253387]
[1765826855998,0.001,2952.7,2951.9,3.93262887]
[1765826856228,0.002,2952.7,2951.9,3.93262887]
[1765826856603,0.002,2952.7,2951.9,3.93462887]
[1765826857000,0.001,2952.0,2951.9,0.547]
[1765826857203,0.001,2952.6,2951.9,3.93464863]
[1765826857624,0.001,2952.6,2951.9,0.002]
[1765826857625,0.001,2952.0,2951.9,0.002]
[1765826858021,0.002,2952.0,2951.9,0.002]
[1765826858628,1.18376281,2952.0,2951.9,0.002]
[1765826859160,0.405504,2951.9,2950.9,3.38876139]
[1765826859334,0.001,2951.2,2950.7,0.002]
[1765826859536,0.001,2951.2,2950.7,0.547]
[1765826859756,0.001,2951.2,2950.7,0.002]
[1765826860956,0.002,2951.2,2950.7,0.002]
[1765826861461,0.001,2951.2,2950.7,0.002]
[1765826862532,4.16384271,2952.0,2951.1,0.6658]
[1765826862843,0.58147529,2951.9,2951.1,0.545]
[1765826863430,0.07156489,2952.2,2951.1,1.1928]
[1765826863832,0.07156489,2952.2,2951.2,0.4539]
[1765826864246,0.07156489,2952.2,2951.3,6.77667468]
[1765826864450,0.07156489,2952.2,2951.4,0.72305747]
[1765826864451,0.58047529,2952.1,2951.4,0.72305747]
[1765826864781,0.07156489,2952.6,2951.4,1.17695747]
[1765826864976,0.07156489,2952.6,2951.5,0.4539]
[1765826865277,3.38876336,2952.7,2951.6,0.545]
[1765826865278,0.001,2952.7,2951.6,0.545]
[1765826865778,3.96628873,2953.5,2951.7,0.4539]
[1765826865969,0.77431483,2953.4,2951.7,0.4539]
[1765826866275,0.58047529,2953.3,2951.8,6.77552678]
[1765826866451,0.405504,2953.2,2951.8,6.77552678]
[1765826866647,0.405504,2953.2,2951.9,0.545]
[1765826867062,0.405504,2953.2,2951.9,0.9989]
[1765826867273,0.405504,2953.2,2952.0,1.11621902]
[1765826868479,0.98597929,2953.0,2952.0,4.50373835]
[1765826868979,0.98597929,2953.0,2952.0,7.89127222]
[1765826869589,0.001,2952.7,2952.0,7.89127222]
[1765826869754,0.001,2952.7,2952.0,1.11621902]
[1765826869954,0.001,2952.7,2951.8,3.38774691]
[1765826870287,0.001,2952.7,2951.7,3.38786248]
[1765826870753,0.001,2952.7,2951.5,0.002]
[1765826871079,0.405504,2952.5,2951.5,0.002]
[1765826871990,0.405504,2952.5,2951.6,3.38797981]
[1765826872281,0.405504,2952.5,2951.6,3.38799012]
[1765826872681,0.58047529,2952.3,2951.6,0.39349901]
[1765826873390,0.545,2952.6,2951.7,0.4539]
[1765826873578,0.58047529,2952.5,2951.7,0.4539]
[1765826874680,0.001,2952.7,2951.8,6.77552678]
[1765826874887,0.58047529,2952.5,2951.9,0.545]
[1765826875972,0.58047529,2952.5,2952.0,0.545]
[1765826876794,3.96753372,2952.5,2952.0,0.545]
[1765826877005,0.58047529,2952.5,2952.0,3.93253068]
[1765826877159,0.001,2952.7,2952.4,0.4719]
[1765826877667,0.001,2952.7,2952.4,0.544]
[1765826878398,0.001,2952.7,2952.4,0.9979]
[1765826878774,0.001,2952.7,2952.4,0.544]
[1765826878973,0.39780201,2952.7,2951.9,0.4539]
[1765826879399,0.39780201,2952.7,2952.0,3.38746471]
[1765826879998,0.001,2952.7,2951.8,3.93172594]
[1765826880202,0.001,2952.7,2952.2,3.38729726]
[1765826880766,0.001,2952.7,2952.0,3.38745064]
[1765826880767,0.001,2952.7,2952.1,3.3873958]
[1765826880974,0.001,2952.7,2952.0,3.38753387]
[1765826881376,0.001,2952.7,2952.0,6.77506774]
[1765826881578,0.405504,2952.6,2951.3,0.4539]
[1765826881763,0.949504,2952.6,2951.6,0.544]
[1765826882195,0.949504,2952.6,2951.6,3.9319031]
[1765826882702,0.949504,2952.6,2951.8,3.38766498]
[1765826883009,0.58047529,2952.4,2951.7,7.24745634]
[1765826884074,0.001,2952.7,2952.0,0.002]
[1765826884286,0.001,2952.7,2952.0,0.546]
[1765826884469,0.001,2952.7,2952.1,0.6545]
[1765826884798,0.001,2952.7,2952.6,0.4655]
[1765826884975,0.001,2952.7,2952.6,4.39634549]
[1765826885167,0.001,2952.7,2952.6,4.86804549]
[1765826885678,0.001,2952.7,2952.6,5.69354535]
[1765826886997,0.001,2952.7,2952.1,0.1828]
[1765826887301,0.001,2952.7,2952.6,0.4655]
[1765826887604,0.001,2952.7,2952.6,1.0095]
[1765826887804,0.001,2952.7,2952.6,1.4812]
[1765826888166,0.001,2952.7,2952.6,4.86804549]
[1765826888391,0.001,2952.7,2952.6,5.69353819]
[1765826890304,0.001,2952.7,2952.6,4.21233819]
[1765826890484,0.001,2952.7,2952.6,3.93084549]
[1765826891106,0.001,2952.7,2952.1,0.1828]
[1765826891314,0.001,2952.7,2952.0,0.002]
[1765826891479,0.001,2952.7,2952.1,3.38735466]
[1765826891799,0.001,2952.7,2952.3,3.38712475]
[1765826892307,0.001,2952.7,2952.4,3.38705525]
[1765826892492,0.001,2952.7,2952.3,0.544]
[1765826894305,0.001,2952.7,2952.0,0.002]
[1765826895276,0.58047529,2952.6,2952.0,0.002]
[1765826895680,0.405504,2952.5,2952.0,0.002]
[1765826896295,1.35651937,2952.6,2952.0,0.002]
[1765826896697,0.949504,2952.5,2952.0,0.002]
[1765826896895,1.02106889,2952.5,2951.5,0.002]
[1765826897111,1.07106889,2952.5,2951.5,0.002]
[1765826897309,0.405504,2952.0,2951.5,0.002]
[1765826897510,0.949504,2952.0,2951.5,0.002]
[1765826897672,0.405504,2951.8,2951.5,0.002]
[1765826898008,0.405504,2951.8,2950.8,0.002]
[1765826898978,0.949504,2951.8,2950.9,3.38878204]
[1765826899692,0.98597929,2951.6,2950.8,0.002]
[1765826899893,1.85710325,2951.6,2950.8,0.002]
[1765826900189,1.45159925,2951.6,2950.8,0.4737]
[1765826901001,1.45159925,2951.6,2950.8,0.002]
[1765826901508,1.45159925,2951.6,2950.9,0.002]
[1765826901806,6.77621548,2951.5,2950.9,0.002]
[1765826902011,0.76473394,2951.4,2950.9,0.002]
[1765826902209,0.58047529,2951.7,2950.9,0.4737]
[1765826903921,0.58047529,2951.5,2950.9,0.002]
[1765826905400,0.58047529,2951.7,2950.9,0.4737]
[1765826906105,0.07156489,2951.9,2951.0,6.7773636]
[1765826906314,0.65204018,2951.9,2951.0,7.84154789]
[1765826906529,0.07156489,2952.5,2951.1,0.6545]
[1765826906702,0.07156489,2952.5,2951.2,0.544]
[1765826906908,0.07156489,2952.5,2951.2,1.0157]
[1765826907103,0.545,2952.7,2951.2,1.0157]
[1765826907302,3.93177793,2952.7,2951.3,0.4717]
[1765826907502,0.98080957,2952.6,2951.3,0.4717]
[1765826907907,3.96734024,2952.6,2951.4,10.16466759]
[1765826908105,0.58047529,2952.5,2951.4,10.16466759]
[1765826908428,0.001,2952.7,2951.5,0.4717]
[1765826908829,0.001,2952.5,2951.4,3.38822253]
[1765826908994,0.001,2952.5,2951.4,7.32044506]
[1765826909200,0.001,2952.5,2951.5,0.4717]
[1765826910218,0.001,2952.5,2951.6,10.16397885]
[1765826910422,0.001,2952.5,2951.7,0.52647878]
[1765826910608,0.001,2952.5,2951.7,0.4926]
[1765826910813,0.001,2952.5,2952.4,0.6759]
[1765826911036,0.001,2952.5,2952.4,1.2199]
[1765826911329,0.001,2952.5,2952.4,1.7125]
[1765826912429,0.001,2952.5,2952.1,0.1998]
[1765826912600,0.001,2952.5,2952.2,0.544]
[1765826912795,0.001,2952.5,2952.2,3.93129482]
[1765826913125,0.001,2952.5,2952.4,3.84927492]
[1765826913517,0.001,2952.5,2952.4,0.4622]
[1765826913695,0.001,2952.5,2952.4,3.84927492]
[1765826913902,0.001,2952.5,2952.4,4.31727492]
[1765826914120,0.001,2952.5,2952.4,0.9302]
[1765826914403,0.001,2952.5,2952.0,0.544]
[1765826914618,0.73659369,2952.5,2952.0,0.544]
[1765826914926,0.001,2952.5,2952.4,0.4622]
[1765826915229,0.001,2952.5,2952.4,0.544]
[1765826915604,0.001,2952.5,2951.1,0.1828]
[1765826915810,0.001,2952.5,2951.7,3.38781336]
[1765826916336,0.001,2952.5,2951.9,3.38761095]
[1765826916534,0.58147529,2952.5,2951.9,3.38761095]
[1765826917703,0.58147529,2952.5,2951.9,3.93161095]
[1765826918130,0.58147529,2952.5,2951.9,0.544]
[1765826918310,0.73551663,2952.4,2951.9,0.544]
[1765826918510,3.38712036,2952.4,2951.9,0.544]
[1765826918707,0.58047529,2952.3,2951.4,3.38815189]
[1765826918930,0.58047529,2952.3,2951.5,0.544]
[1765826919429,0.405504,2952.2,2951.1,3.38856081]
[1765826919732,0.405504,2952.2,2951.2,0.544]
[1765826920305,0.405504,2952.2,2951.2,3.93244974]
[1765826920508,0.58047529,2952.0,2951.2,3.93244974]
[1765826920734,0.58047529,2952.0,2951.3,0.468]
[1765826920927,0.58047529,2952.1,2951.3,0.468]
[1765826921105,0.58047529,2952.1,2951.2,3.38844974]
[1765826921434,0.58047529,2952.1,2950.9,0.002]
[1765826921435,0.405504,2952.0,2950.9,0.002]
[1765826921602,0.405504,2952.0,2950.9,0.546]
[1765826921808,0.405504,2952.0,2951.0,3.38861119]
[1765826922804,0.58047529,2951.8,2951.1,0.1998]
[1765826923010,1.35660295,2951.8,2951.1,0.1998]
[1765826923707,0.58047529,2951.9,2951.2,0.50188452]
[1765826924039,3.45868066,2952.4,2951.8,0.4622]
[1765826924210,0.07156489,2952.4,2951.8,0.4622]
[1765826924407,0.07156489,2952.4,2951.8,0.9302]
[1765826924737,0.65204018,2952.4,2951.8,0.9302]
[1765826925036,0.65204018,2952.4,2951.4,3.3881594]
[1765826925037,0.58047529,2952.3,2951.4,3.3881594]
[1765826925237,1.08133839,2952.2,2951.5,0.544]
[1765826925569,0.58047529,2952.3,2951.7,3.38787802]
[1765826925929,0.58047529,2952.3,2951.6,3.38789748]
[1765826926129,0.58047529,2952.3,2951.7,3.38786468]
[1765826926309,0.07156489,2952.4,2951.8,3.38775598]
[1765826926639,0.58047529,2952.3,2951.8,3.38775926]
[1765826926820,0.001,2952.5,2952.0,3.38753387]
[1765826927143,3.96852266,2952.5,2951.9,0.544]
[1765826927322,4.3689664,2952.5,2951.9,3.93159732]
[1765826927637,4.3689664,2952.5,2951.9,0.544]
[1765826927839,4.3689664,2952.5,2951.9,3.93160883]
[1765826928833,0.98191903,2952.5,2951.9,3.93160883]
[1765826929014,3.96844552,2952.5,2951.9,3.93160883]
[1765826929644,0.58147529,2952.5,2951.9,7.78725746]
[1765826929852,0.58047529,2952.4,2951.9,4.39960883]
[1765826930146,3.38798469,2952.5,2951.9,4.39960883]
[1765826930147,0.58147529,2952.5,2951.9,4.39963163]
[1765826930331,3.96847368,2952.5,2951.9,4.39963163]
[1765826931115,0.58147529,2952.5,2951.9,4.39963163]
[1765826931644,3.96844322,2952.5,2951.9,4.39963163]
[1765826933357,0.58147529,2952.5,2951.9,4.39963163]
[1765826933639,0.001,2952.5,2952.4,0.662]
[1765826933853,0.001,2952.5,2952.4,0.544]
[1765826936957,0.001,2952.5,2952.2,3.93129315]
[1765826937141,0.001,2952.5,2952.3,3.38718929]
[1765826937541,0.001,2952.5,2952.4,0.4622]
[1765826937838,0.001,2952.5,2952.4,0.9302]
[1765826938819,0.001,2952.5,2952.3,7.50623754]
[1765826939039,0.001,2952.5,2952.4,0.4622]
[1765826939238,0.001,2952.5,2952.4,0.9302]
[1765826939437,0.001,2952.5,2952.4,5.21531867]
[1765826939642,0.001,2952.5,2952.4,4.74731867]
[1765826939842,0.001,2952.5,2952.4,5.21531867]
[1765826941858,0.001,2952.5,2952.4,3.93107492]
[1765826942053,0.001,2952.5,2952.4,4.87187492]
[1765826942251,0.001,2952.5,2952.4,4.90574566]
[1765826942458,0.001,2952.5,2952.4,4.87187492]
[1765826942662,0.001,2953.6,2952.6,0.4757]
[1765826942954,0.001,2953.6,2952.7,1.0091]
[1765826943357,0.001,2953.6,2952.9,6.7730028]
[1765826943535,0.001,2953.6,2953.0,0.72381028]
[1765826943732,0.001,2953.6,2953.1,0.544]
[1765826944227,0.001,2953.6,2953.2,0.03386157]
[1765826944440,0.001,2953.6,2953.1,1.2022]
[1765826944640,0.001,2953.6,2953.2,0.4651]
[1765826945261,0.001,2953.6,2953.2,0.65770103]
[1765826945464,0.002,2953.3,2952.8,0.1931]
[1765826945651,0.002,2953.2,2952.3,3.5801925]
[1765826945957,0.002,2953.2,2952.4,0.544]
[1765826946163,0.002,2953.1,2952.4,3.9310593]
[1765826946665,0.002,2953.1,2952.4,0.544]
[1765826947031,0.002,2952.5,2952.0,3.38745328]
[1765826947232,0.002,2952.4,2952.0,3.38751921]
[1765826947460,0.002,2952.4,2952.1,3.38736049]
[1765826947759,0.98797929,2953.0,2952.0,7.31902964]
[1765826947960,0.98797929,2953.0,2952.0,3.93149577]
[1765826948157,0.002,2952.9,2952.0,0.544]
[1765826948330,0.002,2952.1,2952.0,0.544]
[1765826948941,0.002,2952.6,2952.0,0.544]
[1765826949156,0.002,2952.1,2952.0,0.544]
[1765826949732,0.58247529,2952.6,2952.0,0.544]
[1765826949930,1.35861938,2952.6,2952.0,3.93152852]
[1765826950949,1.35661938,2952.6,2952.0,3.93152852]
[1765826951260,0.58047529,2952.6,2952.5,0.4757]
[1765826951472,0.001,2952.9,2952.5,0.4757]
[1765826951635,0.001,2952.9,2952.8,0.4757]
[1765826951848,0.001,2952.9,2952.8,4.40631609]
[1765826952047,0.001,2952.9,2952.5,0.544]
[1765826952048,0.003,2952.9,2952.5,0.544]
[1765826952677,0.003,2952.9,2952.5,3.93090555]
[1765826953564,0.003,2952.9,2952.6,3.38675461]
[1765826953565,0.001,2952.9,2952.6,3.38675461]
[1765826954900,0.001,2952.9,2952.5,3.93092126]
[1765826955098,0.002,2952.6,2952.1,0.1931]
[1765826955392,0.002,2952.5,2952.2,0.543]
[1765826955756,0.002,2952.3,2951.6,0.4651]
[1765826956082,0.002,2952.3,2951.7,0.543]
[1765826956665,0.002,2952.3,2951.6,3.83146148]
[1765826956964,0.002,2952.3,2951.7,0.543]
[1765826957357,0.002,2952.3,2951.7,3.930872]
[1765826958285,0.004,2952.3,2951.7,0.543]
[1765826958676,0.002,2951.8,2951.7,0.543]
[1765826959183,0.002,2951.8,2951.5,0.002]
[1765826959560,0.002,2951.6,2951.5,0.002]
[1765826959886,0.002,2952.1,2951.5,0.002]
[1765826960279,0.002,2951.6,2951.5,0.002]
[1765826963179,0.004,2951.6,2951.5,0.002]
[1765826963978,0.002,2951.6,2951.5,0.002]
[1765826964181,0.004,2951.6,2951.5,0.002]
[1765826966591,0.98997929,2951.6,2951.0,0.002]
[1765826966796,0.002,2951.1,2951.0,0.002]
[1765826967490,0.58047529,2951.6,2951.0,0.9428]
[1765826967788,0.58047529,2951.6,2951.0,0.4777]
[1765826968173,0.58047529,2951.6,2951.0,0.002]
[1765826968561,3.38810774,2951.5,2951.0,0.002]
[1765826968766,0.73584612,2951.5,2951.0,0.002]
[1765826968966,0.58047529,2951.7,2951.0,0.002]
[1765826969194,3.96839751,2951.7,2951.0,0.002]
[1765826969764,7.35631973,2951.7,2951.0,0.002]
[1765826970096,0.002,2951.1,2951.0,0.002]
[1765826970293,0.004,2951.1,2951.0,0.002]
[1765826971162,0.002,2951.1,2951.0,0.002]
[1765826971364,0.004,2951.1,2951.0,0.002]
[1765826972401,0.002,2951.1,2951.0,0.002]
[1765826973798,0.39928126,2951.1,2951.0,0.002]
[1765826974498,0.07156489,2952.2,2951.0,1.5123]
[1765826974698,0.002,2951.1,2951.0,0.002]
[1765826975671,6.77575634,2951.7,2951.0,0.9693]
[1765826975672,0.58047529,2951.7,2951.0,0.9693]
[1765826975870,0.58047529,2951.7,2951.1,0.1848]
[1765826976173,0.58047529,2951.7,2951.1,0.6781]
[1765826976775,0.58047529,2951.9,2951.2,1.0363]
[1765826977377,0.58047529,2951.7,2951.2,0.543]
[1765826977585,0.002,2951.3,2951.0,0.002]
[1765826977779,0.002,2951.1,2951.0,0.002]
[1765826980299,0.004,2951.1,2951.0,0.002]
[1765826980969,0.002,2951.1,2951.0,0.002]
[1765826981977,0.004,2951.1,2951.0,0.002]
[1765826982174,0.002,2950.9,2950.6,0.002]
[1765826982393,0.407504,2950.8,2950.5,0.002]
[1765826982599,0.002,2950.6,2950.5,0.002]
[1765826983000,0.004,2950.6,2950.5,0.002]
[1765826983403,0.409504,2950.6,2950.5,0.002]
[1765826984505,3.79864519,2950.6,2950.5,0.002]
[1765826984707,5.10504482,2950.6,2950.5,0.002]
[1765826987125,1.30839963,2950.6,2950.5,0.002]
[1765826987293,0.58047529,2950.6,2950.5,0.002]
[1765826987489,0.58247529,2950.6,2950.5,0.002]
[1765826988215,3.97361648,2950.6,2950.5,0.002]
[1765826989020,0.58247529,2950.6,2950.5,0.002]
[1765826989711,0.58447529,2950.6,2950.5,0.002]
[1765826989912,3.97361648,2950.6,2950.5,0.002]
[1765826990095,4.7078811,2950.6,2950.5,0.002]
[1765826990302,4.7098811,2950.6,2950.5,0.002]
[1765826990516,4.7078811,2950.6,2950.5,0.002]
[1765826990805,3.97161648,2950.6,2950.5,0.002]
[1765826991007,0.58247529,2950.6,2950.5,0.002]
[1765826991404,3.97161648,2950.6,2950.5,0.002]
[1765826992692,3.97361648,2950.6,2950.5,0.002]
[1765826994614,3.97461648,2950.6,2950.5,0.002]
[1765826995418,3.97461648,2950.6,2949.8,0.002]
[1765826995419,0.58047529,2950.5,2949.8,0.002]
[1765826995583,0.407504,2950.4,2949.8,0.002]
[1765826995788,0.002,2949.9,2949.8,0.002]
[1765826996007,0.407504,2950.4,2949.8,0.002]
[1765826996008,0.002,2950.3,2949.8,0.002]
[1765826996211,0.002,2950.3,2949.8,3.39205701]
[1765826996423,0.002,2949.9,2949.8,0.002]
[1765826996590,0.002,2950.3,2949.8,0.002]
[1765826996792,0.002,2949.9,2949.8,0.002]
[1765826998121,0.004,2949.9,2949.8,0.002]
[1765826999592,0.405504,2950.3,2949.8,0.002]
[1765826999795,0.002,2949.9,2949.8,0.002]
[1765827000393,0.004,2949.9,2949.8,0.002]
[1765827000592,0.004,2949.8,2949.6,0.002]
[1765827000891,0.002,2949.7,2949.6,0.002]
[1765827001096,0.004,2949.7,2949.6,0.002]
[1765827001494,1.18649101,2949.7,2949.6,0.002]
[1765827001808,0.77898701,2949.7,2949.6,0.002]
[1765827001995,0.78098701,2949.7,2949.6,0.002]
[1765827002389,3.93274164,2950.1,2949.6,0.002]
[1765827002390,0.58047529,2950.0,2949.6,0.4739]
[1765827002595,0.002,2949.7,2949.6,0.002]
[1765827003841,0.409504,2949.7,2949.6,0.002]
[1765827004020,1.18649101,2949.7,2949.6,0.002]
[1765827004340,0.77898701,2949.7,2949.6,0.002]
[1765827004516,0.002,2949.7,2949.6,0.002]
[1765827004694,0.001,2950.6,2949.6,0.9787029]
[1765827004898,0.001,2950.6,2950.1,0.1953]
[1765827005197,0.58047529,2950.5,2950.1,0.1953]
[1765827005393,0.001,2950.6,2949.9,0.4709]
[1765827005693,0.001,2950.6,2949.6,3.39225749]
[1765827005694,0.58247529,2950.5,2949.7,3.39012083]
[1765827006108,0.002,2950.4,2949.7,3.39012083]
[1765827006308,0.58047529,2950.5,2949.7,6.7802961]
[1765827006604,0.58047529,2950.5,2949.8,0.4709]
[1765827006922,0.58047529,2950.5,2949.8,0.77961961]
[1765827007124,0.001,2950.6,2949.8,0.77961961]
[1765827007312,0.001,2950.6,2949.8,1.25051961]
[1765827007514,0.001,2950.6,2949.9,6.77989084]
[1765827007720,0.001,2950.6,2949.9,3.38994542]
[1765827008029,0.001,2950.6,2949.6,0.002]
[1765827008030,0.002,2950.0,2949.6,0.002]
[1765827008209,0.002,2949.9,2949.6,0.002]
[1765827008635,0.002,2949.7,2949.6,0.002]
[1765827009135,0.002,2950.2,2949.6,3.3922902]
[1765827009444,0.405504,2950.4,2949.6,4.3350902]
[1765827009742,0.002,2949.7,2949.6,0.002]
[1765827009941,0.004,2949.7,2949.6,0.002]
[1765827011906,3.39417527,2949.7,2949.6,0.002]
[1765827012108,4.77234647,2949.7,2949.6,0.002]
[1765827013237,5.72085047,2949.7,2949.6,0.002]
[1765827016669,0.65404018,2949.7,2949.6,0.002]
[1765827016950,0.07156489,2950.1,2949.6,0.9448]
[1765827017114,0.65204018,2950.1,2949.6,0.9448]
[1765827017318,0.07156489,2950.1,2949.6,0.9448]
[1765827017522,0.07156489,2950.1,2949.6,0.4739]
[1765827017720,0.07156489,2950.1,2949.7,0.4709]
[1765827018256,0.58047529,2950.1,2949.6,0.002]
[1765827018451,3.38971832,2950.1,2949.6,0.002]
[1765827018656,0.07156489,2950.3,2950.0,0.4719]
[1765827018838,0.07156489,2950.5,2950.2,0.4719]
[1765827019649,0.07156489,2950.5,2950.1,0.1953]
[1765827019650,0.001,2950.6,2950.4,0.4719]
[1765827019856,0.001,2951.5,2950.5,0.50579256]
[1765827020161,0.001,2951.5,2950.9,0.4719]
[1765827020460,0.001,2951.5,2951.4,0.6672]
[1765827020767,0.001,2951.5,2951.4,4.05542253]
[1765827021129,0.001,2951.5,2951.3,3.38828707]
[1765827021731,0.001,2951.5,2951.4,4.33102253]
[1765827022542,0.001,2951.7,2951.4,7.71924506]
[1765827022744,0.001,2951.7,2951.6,0.4719]
[1765827022958,0.001,2951.7,2951.6,1.0149]
[1765827023190,0.001,2951.7,2951.6,1.4858]
[1765827023488,0.001,2951.7,2951.6,2.31202451]
[1765827024831,0.001,2951.7,2951.6,5.70001746]
[1765827025761,0.001,2951.7,2951.6,4.87379295]
[1765827028546,0.005,2951.7,2951.1,0.6662]
[1765827028755,0.005,2951.7,2951.2,3.93138695]
[1765827028956,0.001,2951.7,2951.6,0.4719]
[1765827030585,0.005,2951.7,2951.2,3.93138695]
[1765827030760,0.001,2951.7,2951.3,0.4955]
[1765827030962,0.001,2951.7,2951.2,3.93138695]
[1765827031481,0.001,2951.7,2951.3,0.543]
[1765827031657,0.001,2951.7,2951.1,0.1953]
[1765827031658,3.72786558,2951.7,2951.1,0.1953]
[1765827031860,0.004,2951.2,2950.5,0.4947]
[1765827032182,0.004,2951.1,2950.6,3.38911948]
[1765827032475,0.65204018,2951.6,2950.7,0.4947]
[1765827032648,0.65204018,2951.6,2951.0,0.455]
[1765827032855,3.45960222,2951.6,2951.0,0.455]
[1765827033062,0.58047529,2951.5,2951.0,0.455]
[1765827033267,0.58047529,2951.5,2950.8,3.38890401]
[1765827033557,3.7279303,2951.7,2951.4,0.6447]
[1765827033558,0.001,2951.7,2951.4,0.6447]
[1765827033771,0.001,2951.7,2951.6,0.455]
[1765827033968,0.001,2951.7,2951.6,0.9497]
[1765827034978,0.001,2951.7,2951.4,0.1897]
[1765827035165,0.001,2951.7,2951.6,0.543]
[1765827035369,0.001,2951.7,2951.6,0.998]
[1765827035570,0.001,2951.7,2951.6,4.88069295]
[1765827035757,0.001,2951.7,2951.6,5.72653678]
[1765827038054,0.001,2951.7,2951.6,4.38599295]
[1765827038257,0.001,2951.7,2951.6,4.88069295]
[1765827038451,0.001,2952.5,2951.7,0.9497]
[1765827038882,0.58047529,2952.4,2951.7,0.455]
[1765827039065,0.58047529,2952.4,2951.9,3.38764863]
[1765827039266,3.3870955,2952.4,2952.0,0.4947]
[1765827039676,3.38799671,2952.5,2952.0,0.4947]
[1765827039873,0.58147529,2952.5,2952.0,0.4947]
[1765827040182,3.38796466,2952.5,2952.0,0.4947]
[1765827040557,3.38796466,2952.5,2951.9,3.38764863]
[1765827040558,0.001,2952.5,2952.1,0.6844]
[1765827041191,0.001,2952.5,2952.4,3.84207492]
[1765827041357,0.001,2952.5,2952.4,5.15747052]
[1765827041691,0.001,2952.5,2952.4,5.65217052]
[1765827042368,0.007,2952.5,2952.1,0.1897]
[1765827042600,0.001,2952.5,2952.2,0.4947]
[1765827042896,0.001,2952.5,2951.9,0.543]
[1765827042897,0.006,2952.2,2951.9,0.543]
[1765827043196,6.77529726,2951.9,2951.0,3.57830242]
[1765827043493,1.25860502,2951.8,2951.0,0.7327]
[1765827043996,0.58047529,2951.8,2951.1,0.4947]
[1765827044180,0.58047529,2952.0,2951.4,3.38819886]
[1765827044490,0.65304018,2952.5,2952.0,0.455]
[1765827044690,0.65304018,2952.5,2951.5,0.543]
[1765827044691,4.0460687,2952.5,2951.7,0.4947]
[1765827044868,4.44477557,2952.5,2951.7,0.543]
[1765827045185,4.44477557,2952.5,2951.7,1.0377]
[1765827045391,3.45953469,2952.5,2951.8,3.38776339]
[1765827046162,0.65304018,2952.5,2951.9,0.4947]
[1765827046361,0.001,2952.5,2952.4,0.6447]
[1765827046597,0.001,2952.5,2952.4,1.1394]
[1765827047362,0.001,2952.5,2952.4,4.52647492]
[1765827047679,0.001,2952.5,2952.4,5.40601164]
[1765827048897,0.001,2952.5,2952.4,5.3721409]
[1765827049406,0.001,2952.7,2952.4,8.75921582]
[1765827049566,0.001,2952.7,2952.6,0.455]
[1765827049878,0.001,2952.7,2952.6,2.36862158]
[1765827051192,0.001,2952.7,2952.6,1.82562158]
[1765827051507,0.001,2952.7,2952.6,5.21246707]
[1765827052101,0.001,2952.7,2952.6,4.38384549]
[1765827052309,0.001,2952.7,2952.6,4.87854549]
[1765827052824,0.001,2952.7,2952.6,1.4917]
[1765827053290,0.008,2952.7,2952.5,0.542]
[1765827053608,0.008,2952.7,2952.1,0.4947]
[1765827053609,6.78079262,2952.6,2951.9,0.1897]
[1765827053768,0.007,2952.3,2951.8,0.542]
[1765827054303,0.014,2952.3,2951.8,0.542]
[1765827054466,0.007,2951.9,2951.5,0.002]
[1765827054801,0.405504,2952.4,2951.6,3.38792535]
[1765827054966,0.17357234,2952.3,2951.7,3.38786757]
[1765827055293,0.65204018,2952.5,2951.9,3.38763641]
[1765827055468,0.65204018,2952.5,2951.9,3.92963641]
[1765827055670,0.58047529,2952.6,2952.0,0.4947]
[1765827056075,0.58047529,2952.6,2952.1,0.1897]
[1765827056304,0.58047529,2952.6,2952.0,0.4947]
[1765827056667,0.007,2952.1,2951.5,0.002]
[1765827056885,0.007,2952.0,2951.5,0.002]
[1765827057702,3.38764863,2951.9,2951.5,0.002]